bitfinex-derivatives/quotes_SOLF0:USTF0_20240823
["timestamp","ask_amount","ask_price","bid_price","bid_amount"]
[1724412092741,3.53865186,143.43,143.4,3.4863]
[1724412093048,0.05295186,143.43,143.41,10.68]
[1724412093243,0.05295186,143.43,143.36,3.40175853]
[1724412093546,0.05295186,143.43,143.4,10.68]
[1724412093849,0.05295186,143.43,143.42,10.68]
[1724412094444,0.05295186,143.43,143.42,14.1659]
[1724412095140,3.4847,143.47,143.42,14.1659]
[1724412095344,10.68,143.5,143.44,10.68]
[1724412095742,3.485,143.46,143.44,10.68]
[1724412096151,0.05129146,143.46,143.44,10.73215939]
[1724412096745,0.05129146,143.46,143.45,10.68]
[1724412098349,0.05129146,143.46,143.45,14.1651]
[1724412099044,3.484,143.5,143.46,3.4849]
[1724412099250,10.68,143.52,143.45,10.68]
[1724412099549,3.4842,143.5,143.44,3.53411838]
[1724412099744,10.68,143.52,143.45,14.1651]
[1724412100146,0.05298906,143.5,143.47,0.05246306]
[1724412101647,3.53708906,143.5,143.47,0.05246306]
[1724412102346,0.05298906,143.5,143.48,10.68]
[1724412104447,0.05298906,143.5,143.48,14.1644]
[1724412104857,0.05298906,143.5,143.49,10.68]
[1724412105552,0.05298906,143.5,143.48,10.68]
[1724412107055,0.05298906,143.5,143.47,0.05246306]
[1724412107771,3.4842,143.49,143.47,0.05246306]
[1724412111551,3.4844,143.48,143.47,0.05246306]
[1724412117991,14.1644,143.48,143.47,0.05246306]
[1724412119663,3.4855,143.44,143.37,4.0154]
[1724412119863,3.4855,143.44,143.4,10.68]
[1724412120470,3.4858,143.43,143.4,10.68]
[1724412120768,3.53576447,143.43,143.4,10.72596925]
[1724412121269,3.53576447,143.43,143.4,0.04596925]
[1724412122271,3.4859,143.42,143.4,0.04596925]
[1724412122663,10.72996447,143.43,143.4,0.04596925]
[1724412122861,3.4861,143.41,143.4,0.04596925]
[1724412123163,0.04996447,143.43,143.4,0.04596925]
[1724412123469,0.04996447,143.43,143.4,10.72596925]
[1724412123470,3.53566447,143.43,143.4,10.72596925]
[1724412123865,3.4859,143.42,143.4,10.72596925]
[1724412124164,0.04996447,143.43,143.4,10.72596925]
[1724412124365,0.04996447,143.43,143.41,10.68]
[1724412125166,0.04996447,143.43,143.4,0.04596925]
[1724412125167,3.4859,143.42,143.4,10.72596925]
[1724412125572,0.04996447,143.43,143.4,10.72596925]
[1724412126265,3.53556447,143.43,143.4,10.72596925]
[1724412126670,3.53556447,143.43,143.41,10.68]
[1724412127461,0.04996447,143.43,143.42,10.68]
[1724412128067,0.04996447,143.43,143.42,14.1659]
[1724412128970,0.04996447,143.43,143.42,10.68]
[1724412130274,0.04996447,143.43,143.42,14.1659]
[1724412130666,0.04996447,143.43,143.42,10.68]
[1724412131173,1.3745,143.51,143.42,10.68]
[1724412131476,1.3745,143.51,143.46,10.68]
[1724412132271,0.04455317,143.5,143.47,0.04436691]
[1724412132869,3.4842,143.49,143.47,0.04436691]
[1724412134275,0.04455317,143.5,143.48,10.68]
[1724412135469,10.68,143.56,143.49,10.68]
[1724412135777,10.68,143.56,143.51,10.68]
[1724412136071,3.483,143.54,143.51,10.68]
[1724412136574,0.04532389,143.54,143.51,0.04642835]
[1724412136766,0.04532389,143.54,143.52,26.76]
[1724412136967,0.04532389,143.54,143.52,30.2434]
[1724412137670,0.04532389,143.54,143.52,33.79372413]
[1724412137868,0.04532389,143.54,143.53,3.4832]
[1724412138573,0.04532389,143.54,143.52,26.76]
[1724412138968,0.04532389,143.54,143.51,30.28992835]
[1724412139565,0.04532389,143.54,143.52,3.4834]
[1724412139773,0.04532389,143.54,143.51,26.80642835]
[1724412140665,0.04532389,143.54,143.52,30.2434]
[1724412141379,0.04532389,143.54,143.51,0.04642835]
[1724412143075,3.52852389,143.54,143.51,0.04642835]
[1724412143476,0.04532389,143.54,143.51,0.04642835]
[1724412143677,3.4834,143.52,143.51,0.04642835]
[1724412144969,3.4832,143.53,143.51,0.04642835]
[1724412145675,3.4834,143.52,143.51,0.04642835]
[1724412147274,0.04532389,143.54,143.51,0.04642835]
[1724412147275,3.4832,143.53,143.51,0.04642835]
[1724412148565,3.52832389,143.54,143.51,0.04642835]
[1724412148769,0.04532389,143.54,143.51,0.04642835]
[1724412149170,3.4834,143.52,143.51,0.04642835]
[1724412149977,0.04532389,143.54,143.51,0.04642835]
[1724412150172,0.04532389,143.54,143.51,26.80642835]
[1724412150571,3.52832389,143.54,143.51,30.29002835]
[1724412151277,3.52832389,143.54,143.51,0.04642835]
[1724412152778,3.4832,143.53,143.51,0.04642835]
[1724412153596,3.52832389,143.54,143.51,0.04642835]
[1724412155284,0.04532389,143.54,143.51,26.80642835]
[1724412156384,0.04532389,143.54,143.51,30.29002835]
[1724412156585,0.04532389,143.54,143.51,26.80642835]
[1724412156981,0.04532389,143.54,143.52,3.4834]
[1724412158589,0.04532389,143.54,143.52,14.1834]
[1724412164092,0.04532389,143.54,143.52,10.7]
[1724412164385,3.52832389,143.54,143.52,10.7]
[1724412164586,3.52832389,143.54,143.51,10.74642835]
[1724412165090,3.4832,143.53,143.51,10.74642835]
[1724412165284,0.04532389,143.54,143.51,10.74642835]
[1724412165685,3.52842389,143.54,143.51,10.74642835]
[1724412171696,3.4832,143.53,143.51,10.74642835]
[1724412174197,3.4832,143.53,143.51,0.04642835]
[1724412174502,3.4832,143.53,143.51,10.74642835]
[1724412176507,0.04532389,143.54,143.52,10.7]
[1724412179104,0.04532389,143.54,143.53,10.7]
[1724412185511,0.04532389,143.54,143.53,14.1832]
[1724412185698,0.04532389,143.54,143.53,10.7]
[1724412187506,0.04532389,143.54,143.53,14.1832]
[1724412188008,0.04532389,143.54,143.53,10.7]
[1724412188810,0.04532389,143.54,143.51,0.04642835]
[1724412189006,0.04532389,143.54,143.52,10.7]
[1724412189432,3.52822389,143.54,143.52,10.7]
[1724412197816,3.52822389,143.54,143.51,0.04642835]
[1724412198012,3.52822389,143.54,143.51,10.74642835]
[1724412201716,3.4832,143.53,143.51,10.74642835]
[1724412206918,0.04532389,143.54,143.52,3.4833]
[1724412207118,0.04532389,143.54,143.52,14.1833]
[1724412207516,0.04532389,143.54,143.52,10.7]
[1724412208423,3.52832389,143.54,143.52,10.7]
[1724412209224,0.04532389,143.54,143.52,14.1833]
[1724412209724,0.04532389,143.54,143.52,17.66619559]
[1724412209914,0.04532389,143.54,143.53,3.4832]
[1724412211629,1.2728,143.61,143.55,3.4826]
[1724412211918,1.2728,143.61,143.55,14.1826]
[1724412212222,3.482,143.58,143.55,10.7]
[1724412212619,3.53173702,143.58,143.55,10.74827828]
[1724412213222,3.4822,143.57,143.55,10.74827828]
[1724412213418,0.04973702,143.58,143.55,0.04827828]
[1724412214021,10.74973702,143.58,143.55,0.04827828]
[1724412214221,3.4825,143.56,143.55,0.04827828]
[1724412222719,3.4825,143.56,143.55,10.74827828]
[1724412224929,3.4824,143.57,143.55,10.74827828]
[1724412225127,3.4824,143.57,143.56,10.7]
[1724412227823,0.04973702,143.58,143.56,10.7]
[1724412229435,0.04973702,143.58,143.57,10.7]
[1724412231030,0.04973702,143.58,143.55,0.04827828]
[1724412231728,3.4824,143.57,143.55,0.04827828]
[1724412232129,3.4824,143.57,143.55,10.74827828]
[1724412234736,3.53183702,143.58,143.55,10.74827828]
[1724412235241,0.04973702,143.58,143.56,10.7]
[1724412236127,0.04973702,143.58,143.55,0.04827828]
[1724412236335,0.04973702,143.58,143.56,10.7]
[1724412237230,0.04973702,143.58,143.55,0.04827828]
[1724412237638,3.4822,143.57,143.55,0.04827828]
[1724412238630,3.4822,143.57,143.55,10.74827828]
[1724412240737,3.53173702,143.58,143.55,14.23097828]
[1724412241141,3.53173702,143.58,143.57,10.7]
[1724412241945,3.4822,143.57,143.56,10.7]
[1724412243638,0.04973702,143.58,143.55,0.04827828]
[1724412244547,3.4825,143.56,143.55,0.04827828]
[1724412250449,3.4825,143.56,143.55,10.74827828]
[1724412251349,3.4823,143.57,143.55,10.74827828]
[1724412252042,3.4825,143.56,143.55,10.74827828]
[1724412252746,3.4825,143.56,143.55,0.04827828]
[1724412264556,3.4825,143.56,143.55,10.74827828]
[1724412265359,3.4823,143.57,143.55,10.74827828]
[1724412265651,3.4823,143.57,143.56,10.7]
[1724412268456,3.4823,143.57,143.55,10.74827828]
[1724412270477,3.53183702,143.58,143.56,10.7]
[1724412271856,0.04973702,143.58,143.56,10.7]
[1724412274855,1.3305,143.64,143.6,10.7]
[1724412275568,1.3305,143.64,143.58,10.7]
[1724412275569,12.0305,143.64,143.58,10.7]
[1724412275766,12.0305,143.64,143.6,0.04735194]
[1724412275767,0.04452986,143.62,143.6,0.04735194]
[1724412276376,3.4813,143.61,143.6,0.04735194]
[1724412283371,14.1813,143.61,143.6,0.04735194]
[1724412284476,3.4813,143.61,143.6,0.04735194]
[1724412304584,0.04452986,143.62,143.6,53.54735194]
[1724412304889,0.04452986,143.62,143.6,57.06858752]
[1724412305085,0.04452986,143.62,143.6,14.26858752]
[1724412305405,0.04452986,143.62,143.6,7.04988752]
[1724412305588,0.04452986,143.62,143.61,10.7]
[1724412309791,0.04452986,143.62,143.61,14.1813]
[1724412311289,3.4803,143.65,143.62,3.4809]
[1724412311487,3.4803,143.65,143.63,10.7]
[1724412311793,3.4802,143.66,143.63,10.7]
[1724412311993,3.4802,143.66,143.65,10.7]
[1724412314189,0.04711605,143.67,143.65,10.7]
[1724412314391,0.04711605,143.67,143.66,10.7]
[1724412316689,0.04711605,143.67,143.66,14.18]
[1724412319998,0.04711605,143.67,143.66,10.7]
[1724412320595,0.04711605,143.67,143.65,14.1802]
[1724412321892,0.04711605,143.67,143.66,10.7]
[1724412322895,1.3998,143.75,143.66,53.5]
[1724412323099,1.3998,143.75,143.7,10.7]
[1724412323899,0.04553305,143.74,143.71,0.04531518]
[1724412324497,3.4788,143.72,143.71,0.04531518]
[1724412326402,3.4784,143.73,143.71,10.74531518]
[1724412327599,0.04553305,143.74,143.71,10.74531518]
[1724412328400,0.04553305,143.74,143.71,0.04531518]
[1724412328698,3.4786,143.72,143.71,0.04531518]
[1724412329292,3.4786,143.72,143.71,10.74531518]
[1724412335303,0.04553305,143.74,143.71,10.74531518]
[1724412335304,3.4784,143.73,143.71,10.74531518]
[1724412338097,3.4783,143.73,143.71,10.74531518]
[1724412338606,0.04553305,143.74,143.71,10.74531518]
[1724412339207,3.4783,143.73,143.71,10.74531518]
[1724412339506,0.04553305,143.74,143.71,10.74531518]
[1724412340304,3.4786,143.72,143.71,10.74531518]
[1724412340900,3.4786,143.72,143.71,0.04531518]
[1724412345404,3.4786,143.72,143.71,10.74531518]
[1724412348415,3.4784,143.73,143.71,10.74531518]
[1724412352516,0.04553305,143.74,143.71,10.74531518]
[1724412352922,3.4785,143.73,143.71,10.74531518]
[1724412359020,3.4786,143.72,143.71,10.74531518]
[1724412361126,3.4785,143.73,143.71,10.74531518]
[1724412361920,3.52373305,143.74,143.71,14.22411518]
[1724412362128,3.52373305,143.74,143.73,10.7]
[1724412363032,3.52373305,143.74,143.71,3.52411518]
[1724412363033,3.4785,143.73,143.71,0.04531518]
[1724412363322,3.4785,143.73,143.71,10.74531518]
[1724412363921,0.04553305,143.74,143.71,10.74531518]
[1724412364120,3.4786,143.72,143.71,0.04531518]
[1724412371833,3.4786,143.72,143.71,10.74531518]
[1724412375538,3.4784,143.73,143.71,10.74531518]
[1724412376428,3.4786,143.72,143.71,10.74531518]
[1724412376628,3.4786,143.72,143.71,0.04531518]
[1724412408256,3.4784,143.73,143.71,0.04531518]
[1724412412657,10.74553305,143.74,143.71,0.04531518]
[1724412413958,3.4785,143.73,143.71,0.04531518]
[1724412429576,3.52373305,143.74,143.71,14.22411518]
[1724412429874,0.04553305,143.74,143.72,10.7]
[1724412431370,0.04553305,143.74,143.72,14.1786]
[1724412432182,0.04553305,143.74,143.71,4.79681518]
[1724412432380,0.04553305,143.74,143.71,15.49681518]
[1724412434683,3.52363305,143.74,143.71,15.49681518]
[1724412435984,3.52363305,143.74,143.71,0.04531518]
[1724412438987,3.52363305,143.74,143.71,3.52411518]
[1724412440485,3.52363305,143.74,143.71,14.22411518]
[1724412451299,0.04553305,143.74,143.71,14.22411518]
[1724412453203,3.52373305,143.74,143.71,0.04531518]
[1724412453699,0.04553305,143.74,143.71,3.52411518]
[1724412456000,0.04553305,143.74,143.72,10.7]
[1724412456399,0.04553305,143.74,143.71,3.52411518]
[1724412456703,3.52373305,143.74,143.71,0.04531518]
[1724412457198,10.74553305,143.74,143.71,0.04531518]
[1724412457501,0.04553305,143.74,143.71,0.04531518]
[1724412457900,3.4786,143.72,143.71,0.04531518]
[1724412458706,0.04553305,143.74,143.71,0.04531518]
[1724412459199,3.4784,143.73,143.71,0.04531518]
[1724412465605,0.04553305,143.74,143.71,0.04531518]
[1724412465606,3.52373305,143.74,143.71,0.04531518]
[1724412465815,3.52373305,143.74,143.72,10.7]
[1724412468412,3.52373305,143.74,143.71,0.04531518]
[1724412469507,3.4784,143.73,143.71,0.04531518]
[1724412478828,3.4786,143.72,143.71,0.04531518]
[1724412481019,3.4784,143.73,143.71,0.04531518]
[1724412483223,3.4786,143.72,143.71,0.04531518]
[1724412489337,3.4791,143.7,143.69,400.0]
[1724412489543,14.1791,143.7,143.69,400.0]
[1724412492934,3.4791,143.7,143.69,400.0]
[1724412506253,3.52292307,143.71,143.69,400.0]
[1724412506458,0.04402307,143.71,143.69,400.0]
[1724412506956,3.4791,143.7,143.68,400.04405239]
[1724412514465,0.04402307,143.71,143.68,403.52355239]
[1724412515063,0.04402307,143.71,143.69,10.7]
[1724412517661,0.04402307,143.71,143.68,3.52355239]
[1724412518263,3.52292307,143.71,143.68,0.04405239]
[1724412526378,3.52292307,143.71,143.69,400.0]
[1724412526681,3.4791,143.7,143.69,400.0]
[1724412546089,3.52292307,143.71,143.69,400.0]
[1724412547492,3.4791,143.7,143.69,400.0]
[1724412551900,3.52292307,143.71,143.69,400.0]
[1724412552088,0.04402307,143.71,143.69,400.0]
[1724412558190,0.04402307,143.71,143.68,414.22355239]
[1724412565002,0.04402307,143.71,143.68,403.52355239]
[1724412565208,0.04402307,143.71,143.68,414.22355239]
[1724412566205,0.04402307,143.71,143.68,403.52355239]
[1724412573509,0.04402307,143.71,143.69,400.0]
[1724412581816,0.04402307,143.71,143.69,410.7]
[1724412585114,3.52282307,143.71,143.69,400.0]
[1724412585521,0.04402307,143.71,143.69,400.0]
[1724412586521,10.74402307,143.71,143.69,400.0]
[1724412586923,14.1791,143.7,143.69,400.0]
[1724412592623,3.4791,143.7,143.69,400.0]
[1724412596323,14.1791,143.7,143.69,400.0]
[1724412597727,3.4791,143.7,143.69,400.0]
[1724412604737,14.1791,143.7,143.69,400.0]
[1724412609534,3.4791,143.7,143.69,400.0]
[1724412612844,14.1791,143.7,143.69,289.74746107]
[1724412613242,7.02029651,143.7,143.69,289.74746107]
[1724412613444,17.72029651,143.7,143.69,289.74746107]
[1724412613842,14.1791,143.7,143.69,289.74746107]
[1724412614345,3.4791,143.7,143.69,289.74746107]
[1724412616546,14.1791,143.7,143.69,289.74746107]
[1724412622459,3.4791,143.7,143.69,289.74746107]
[1724412622660,14.1791,143.7,143.69,289.74746107]
[1724412635956,3.4791,143.7,143.69,289.74746107]
[1724412636157,14.1791,143.7,143.69,289.74746107]
[1724412637065,3.4791,143.7,143.69,289.74746107]
[1724412637858,14.1791,143.7,143.69,289.74746107]
[1724412638663,3.4791,143.7,143.69,289.74746107]
[1724412638962,14.1791,143.7,143.69,289.74746107]
[1724412639359,14.1791,143.7,143.69,194.45746107]
[1724412642261,17.73146978,143.7,143.69,99.16746107]
[1724412644279,59.00188,143.7,143.69,56.63746107]
[1724412644462,60.18131901,143.7,143.69,56.63746107]
[1724412644655,63.67185005,143.7,143.69,56.63746107]
[1724412644856,62.87387005,143.7,143.69,56.63746107]
[1724412645161,58.26978005,143.7,143.61,2.7121]
[1724412645361,10.7,143.63,143.61,2.7121]
[1724412645766,3.481,143.62,143.61,2.7121]
[1724412646355,3.52543416,143.63,143.61,2.7121]
[1724412648274,3.481,143.62,143.61,2.7121]
[1724412651366,3.52543416,143.63,143.61,2.7121]
[1724412652865,0.04453416,143.63,143.61,2.7121]
[1724412653359,3.4813,143.61,143.6,0.04736339]
[1724412658478,0.04453416,143.63,143.6,0.04736339]
[1724412658479,3.4811,143.62,143.6,0.04736339]
[1724412658774,0.04453416,143.63,143.61,10.7]
[1724412658974,64.75285529,143.68,143.62,10.7]
[1724412659175,64.75285529,143.68,143.62,14.181]
[1724412659678,75.45285529,143.68,143.62,14.181]
[1724412659978,0.04731818,143.66,143.64,0.04838516]
[1724412660371,3.4803,143.65,143.64,0.04838516]
[1724412662573,0.04731818,143.66,143.64,0.04838516]
[1724412662769,0.04731818,143.66,143.64,10.74838516]
[1724412662973,0.04731818,143.66,143.65,1.3429]
[1724412663372,3.52741818,143.66,143.65,1.3429]
[1724412663982,10.7,143.72,143.65,12.0429]
[1724412664172,6.9555,143.76,143.65,12.0429]
[1724412664372,2.6401,143.77,143.67,10.7]
[1724412664373,1.27886061,143.75,143.67,10.7]
[1724412664582,10.7,143.74,143.67,10.7]
[1724412665071,0.05039718,143.72,143.69,0.05044764]
[1724412665481,3.4791,143.7,143.69,0.05044764]
[1724412666372,3.4789,143.71,143.69,0.05044764]
[1724412674782,3.4791,143.7,143.69,0.05044764]
[1724412677991,3.4789,143.71,143.69,0.05044764]
[1724412682390,3.52909718,143.72,143.69,0.05044764]
[1724412683396,3.40563308,143.8,143.71,10.7]
[1724412683595,1.3271,143.81,143.73,10.7]
[1724412683895,3.4784,143.73,143.7,62.29325323]
[1724412684395,0.05056609,143.73,143.7,65.82009307]
[1724412686205,3.52896609,143.73,143.7,65.82009307]
[1724412686899,3.4786,143.72,143.7,51.64119307]
[1724412688699,3.4786,143.72,143.7,0.04793984]
[1724412688893,3.52906609,143.73,143.7,0.04793984]
[1724412689201,0.05056609,143.73,143.7,0.04793984]
[1724412689605,3.4786,143.72,143.7,10.74793984]
[1724412689995,0.05056609,143.73,143.7,10.74793984]
[1724412690298,3.52896609,143.73,143.7,10.74793984]
[1724412691107,0.05056609,143.73,143.72,10.7]
[1724412692800,0.05056609,143.73,143.71,14.1787]
[1724412694495,0.05056609,143.73,143.71,10.7]
[1724412695310,0.05056609,143.73,143.7,0.04793984]
[1724412696301,3.4788,143.71,143.7,0.04793984]
[1724412696498,10.7,143.71,143.61,2.7075]
[1724412696699,10.7,143.71,143.64,10.7]
[1724412697307,3.4795,143.69,143.65,3.4803]
[1724412697601,0.04499545,143.68,143.66,0.04703563]
[1724412699206,3.52459545,143.68,143.66,0.04703563]
[1724412703304,3.52459545,143.68,143.66,10.74703563]
[1724412705409,3.52459545,143.68,143.66,0.04703563]
[1724412705618,3.4798,143.67,143.66,0.04703563]
[1724412706108,3.52469545,143.68,143.66,0.04703563]
[1724412711404,0.04499545,143.68,143.66,0.04703563]
[1724412711613,3.4798,143.67,143.66,0.04703563]
[1724412711813,10.7,143.67,143.54,2.6182]
[1724412712111,10.7,143.65,143.6,3.4814]
[1724412712412,10.7,143.65,143.59,10.7]
[1724412712804,10.7,143.64,143.54,50.11578916]
[1724412713010,0.05047591,143.63,143.61,0.04607129]
[1724412713513,3.481,143.62,143.61,0.04607129]
[1724412723419,3.53137591,143.63,143.61,0.04607129]
[1724412723616,3.53137591,143.63,143.61,10.74607129]
[1724412724421,3.53137591,143.63,143.61,14.22727129]
[1724412724422,0.05047591,143.63,143.61,14.22727129]
[1724412724716,0.05047591,143.63,143.62,10.7]
[1724412725320,0.05047591,143.63,143.61,3.52727129]
[1724412725515,0.05047591,143.63,143.61,14.22727129]
[1724412725917,0.05047591,143.63,143.62,14.181]
[1724412728219,0.05047591,143.63,143.61,4.90717129]
[1724412728424,0.05047591,143.63,143.61,15.60717129]
[1724412730328,0.05047591,143.63,143.61,14.22727129]
[1724412731130,0.05047591,143.63,143.61,3.52727129]
[1724412731330,0.05047591,143.63,143.61,14.22727129]
[1724412732918,3.53127591,143.63,143.61,10.74607129]
[1724412733122,0.05047591,143.63,143.61,0.04607129]
[1724412736331,0.05047591,143.63,143.61,3.52727129]
[1724412739834,3.53127591,143.63,143.61,0.04607129]
[1724412751640,0.05047591,143.63,143.61,0.04607129]
[1724412751845,0.05047591,143.63,143.61,10.74607129]
[1724412752037,0.05047591,143.63,143.62,10.7]
[1724412752641,0.05047591,143.63,143.62,14.181]
[1724412755247,0.05047591,143.63,143.62,3.481]
[1724412755445,0.05047591,143.63,143.62,14.181]
[1724412755644,0.05047591,143.63,143.61,3.52727129]
[1724412756247,0.05047591,143.63,143.61,0.04607129]
[1724412757144,0.05047591,143.63,143.61,3.52727129]
[1724412762557,0.05047591,143.63,143.62,3.481]
[1724412762754,3.4802,143.66,143.62,3.481]
[1724412762948,3.4802,143.66,143.63,10.7]
[1724412763752,3.52741148,143.66,143.63,10.7]
[1724412764455,3.52741148,143.66,143.62,3.481]
[1724412768553,3.52741148,143.66,143.61,10.74607129]
[1724412768554,0.04721148,143.66,143.64,10.7]
[1724412769455,0.04721148,143.66,143.64,14.1804]
[1724412771454,0.04721148,143.66,143.65,10.7]
[1724412772249,0.04721148,143.66,143.65,14.1803]
[1724412780858,0.04721148,143.66,143.65,3.4803]
[1724412781062,0.04721148,143.66,143.65,14.1803]
[1724412786457,0.04721148,143.66,143.65,3.4803]
[1724412786763,0.04721148,143.66,143.64,3.53211544]
[1724412787964,0.04721148,143.66,143.65,3.4803]
[1724412789765,10.7,143.74,143.67,3.4798]
[1724412789959,14.23284545,143.75,143.69,10.7]
[1724412790562,10.7,143.75,143.69,10.7]
[1724412791366,71.12342054,143.73,143.69,14.1793]
[1724412791768,0.04881822,143.72,143.69,14.1793]
[1724412792064,0.04881822,143.72,143.7,0.05248701]
[1724412797672,3.52751822,143.72,143.7,0.05248701]
[1724412798477,3.4788,143.71,143.7,0.05248701]
[1724412799775,14.1788,143.71,143.7,0.05248701]
[1724412799976,3.4794,143.69,143.63,10.7]
[1724412800174,14.1794,143.69,143.63,10.7]
[1724412800375,14.1794,143.69,143.64,3.4804]
[1724412801871,14.1794,143.69,143.61,2.6384]
[1724412801872,14.1798,143.68,143.62,10.7]
[1724412802067,10.7,143.66,143.61,1.349]
[1724412802469,10.7,143.66,143.65,0.04509003]
[1724412803271,14.1802,143.66,143.65,0.04509003]
[1724412803673,14.1802,143.66,143.62,3.481]
[1724412805280,14.1802,143.66,143.64,0.04694006]
[1724412808488,3.4802,143.66,143.64,0.04694006]
[1724412810780,3.4799,143.67,143.64,0.04694006]
[1724412810981,0.04447596,143.68,143.64,0.04694006]
[1724412811374,3.48,143.67,143.64,0.04694006]
[1724412813875,3.52407596,143.68,143.64,0.04694006]
[1724412814282,0.04447596,143.68,143.65,10.7]
[1724412814679,0.04447596,143.68,143.65,14.1801]
[1724412815378,0.04447596,143.68,143.66,10.7]
[1724412816185,0.04447596,143.68,143.66,14.18]
[1724412816375,0.04447596,143.68,143.66,10.7]
[1724412816683,0.04447596,143.68,143.67,10.7]
[1724412817485,0.04447596,143.68,143.67,14.1798]
[1724412819981,0.04447596,143.68,143.67,3.4798]
[1724412826490,0.04447596,143.68,143.67,14.1798]
[1724412827089,1.3156,143.74,143.67,10.7]
[1724412827291,1.3156,143.74,143.7,10.7]
[1724412827790,4.7939,143.74,143.7,10.7]
[1724412827992,0.04731432,143.73,143.71,0.04969813]
[1724412828491,3.52571432,143.73,143.71,0.04969813]
[1724412837590,3.4786,143.72,143.71,0.04969813]
[1724412839301,14.22581432,143.73,143.71,0.04969813]
[1724412839691,10.74731432,143.73,143.71,0.04969813]
[1724412841392,3.4786,143.72,143.71,0.04969813]
[1724412843488,14.1786,143.72,143.71,0.04969813]
[1724412847799,3.4794,143.69,143.61,56.17069841]
[1724412848007,14.1794,143.69,143.65,3.4801]
[1724412848605,3.4797,143.68,143.64,3.4805]
[1724412848901,0.04655551,143.67,143.65,0.04909903]
[1724412850001,0.04655551,143.67,143.65,3.52929903]
[1724412852999,0.04655551,143.67,143.65,14.22929903]
[1724412855208,0.04655551,143.67,143.65,0.04909903]
[1724412855403,10.7,143.66,143.65,0.04909903]
[1724412855803,14.18,143.66,143.65,0.04909903]
[1724412858212,3.4806,143.64,143.59,14.1816]
[1724412858518,10.7,143.62,143.55,1.4046]
[1724412858706,10.7,143.62,143.56,10.7]
[1724412858910,10.7,143.62,143.57,14.12824363]
[1724412859412,0.04787437,143.61,143.58,0.04433435]
[1724412860313,0.04787437,143.61,143.6,10.7]
[1724412861114,0.04787437,143.61,143.58,0.04433435]
[1724412861411,0.04787437,143.61,143.59,10.7]
[1724412862418,0.04787437,143.61,143.58,0.04433435]
[1724412863521,0.04787437,143.61,143.58,10.74433435]
[1724412864322,0.04787437,143.61,143.58,14.22633435]
[1724412868228,0.04787437,143.61,143.58,3.52633435]
[1724412868426,0.04787437,143.61,143.58,0.04433435]
[1724412870320,0.04787437,143.61,143.58,3.52623435]
[1724412871721,0.04787437,143.61,143.58,14.22623435]
[1724412871920,0.04787437,143.61,143.6,10.7]
[1724412873625,3.4806,143.64,143.6,14.1815]
[1724412873927,3.4806,143.64,143.61,10.7]
[1724412874125,3.4804,143.65,143.61,10.7]
[1724412874323,3.4804,143.65,143.61,14.1812]
[1724412874718,0.04470853,143.64,143.62,0.04386844]
[1724412877824,3.9486,143.74,143.63,10.7]
[1724412878028,3.9486,143.74,143.64,10.7]
[1724412878029,10.7,143.7,143.64,10.7]
[1724412878722,10.7,143.7,143.6,44.1928]
[1724412878723,10.7,143.7,143.6,1.3928]
[1724412879027,0.04583204,143.66,143.64,0.04955667]
[1724412879227,0.04601149,143.66,143.64,0.05306932]
[1724412880329,3.52621149,143.66,143.64,0.05306932]
[1724412881627,3.4803,143.65,143.64,0.05306932]
[1724412882129,14.1803,143.65,143.64,0.05306932]
[1724412882830,14.22621149,143.66,143.64,0.05306932]
[1724412885131,3.4803,143.65,143.64,0.05306932]
[1724412887534,14.1803,143.65,143.64,0.05306932]
[1724412892239,3.4803,143.65,143.64,0.05306932]
[1724412893832,14.1803,143.65,143.64,0.05306932]
[1724412894034,10.7,143.65,143.58,1.3991]
[1724412894338,10.7,143.63,143.58,12.0991]
[1724412894538,10.7,143.64,143.58,12.0991]
[1724412894938,0.05162392,143.62,143.6,0.04856716]
[1724412900242,14.23272392,143.62,143.6,0.04856716]
[1724412901046,3.53272392,143.62,143.6,0.04856716]
[1724412902244,0.05162392,143.62,143.6,0.04856716]
[1724412912947,3.53262392,143.62,143.6,0.04856716]
[1724412914851,0.05162392,143.62,143.61,10.7]
[1724412915346,0.05162392,143.62,143.6,10.74856716]